bitfinex/quotes_BTCUSD_20250408
["timestamp","ask_amount","ask_price","bid_price","bid_amount"]
[1744143994204,0.12625864,76745.0,76744.0,0.221515]
[1744143994380,0.12625864,76745.0,76744.0,0.226515]
[1744143995635,0.12625864,76745.0,76744.0,0.005]
[1744143995999,0.12625864,76745.0,76744.0,0.226515]
[1744143996131,0.13825864,76745.0,76744.0,0.226515]
[1744143996334,0.13825864,76745.0,76744.0,0.23628672]
[1744143996753,0.13825864,76745.0,76744.0,0.01477172]
[1744143996958,0.35977064,76745.0,76744.0,0.01477172]
[1744143997155,0.35977064,76745.0,76741.0,0.005]
[1744143997357,0.20849,76742.0,76741.0,0.005]
[1744143997582,0.208501,76738.0,76737.0,0.005]
[1744143997790,0.221541,76735.0,76733.0,0.005]
[1744143998011,0.12625864,76734.0,76733.0,0.005]
[1744143998671,0.33477064,76734.0,76733.0,0.005]
[1744143999132,0.12625864,76734.0,76733.0,0.226547]
[1744143999337,0.12725864,76734.0,76733.0,0.23648225]
[1744143999642,0.12825864,76734.0,76733.0,0.01493525]
[1744143999933,0.12825864,76734.0,76733.0,0.22345025]
[1744144002439,0.12825864,76734.0,76733.0,0.23648225]
[1744144003004,0.12825864,76734.0,76733.0,0.22345025]
[1744144003206,0.12825864,76734.0,76733.0,0.23648225]
[1744144005793,0.12825864,76734.0,76733.0,0.01493525]
[1744144006200,0.208558,76717.0,76716.0,0.0523]
[1744144006403,0.013033,76724.0,76723.0,0.005]
[1744144006607,0.12625864,76724.0,76723.0,0.005]
[1744144006944,0.33479764,76724.0,76723.0,0.005]
[1744144007224,0.12625864,76724.0,76723.0,0.005]
[1744144007587,0.12625864,76724.0,76723.0,0.213542]
[1744144008066,0.013031,76735.0,76730.0,0.005]
[1744144008268,0.34,76731.0,76730.0,0.005]
[1744144008474,0.46625864,76731.0,76730.0,0.005]
[1744144009532,0.46825864,76731.0,76730.0,0.005]
[1744144009734,0.67677864,76731.0,76730.0,0.005]
[1744144010144,0.46825864,76731.0,76730.0,0.213523]
[1744144010346,0.46825864,76731.0,76730.0,0.005]
[1744144010544,0.67677864,76731.0,76730.0,0.005]
[1744144011878,0.67877864,76731.0,76730.0,0.005]
[1744144013360,0.47025864,76731.0,76730.0,0.005]
[1744144013764,0.69181064,76731.0,76730.0,0.005]
[1744144015166,0.208527,76729.0,76727.0,0.005]
[1744144015362,0.33478764,76728.0,76726.0,0.005]
[1744144015650,0.02757385,76727.0,76717.0,0.005]
[1744144015792,0.02757385,76727.0,76702.0,0.01309559]
[1744144015793,0.208556,76718.0,76716.0,0.005]
[1744144016029,0.12625864,76717.0,76716.0,0.005]
[1744144016403,0.12625864,76717.0,76716.0,0.213561]
[1744144016835,0.04186226,76718.0,76716.0,0.005]
[1744144017140,0.12625864,76718.0,76716.0,0.22320636]
[1744144017348,0.003,76728.0,76719.0,0.005]
[1744144017555,0.34,76726.0,76724.0,0.005]
[1744144017712,0.46625864,76725.0,76724.0,0.005]
[1744144018054,0.67479464,76725.0,76724.0,0.005]
[1744144018753,0.68782764,76725.0,76724.0,0.005]
[1744144019586,0.68782764,76725.0,76721.0,0.005]
[1744144019587,0.221576,76723.0,76721.0,0.005]
[1744144019715,0.34783464,76723.0,76721.0,0.005]
[1744144020142,0.12625864,76723.0,76721.0,0.005]
[1744144020546,0.12625864,76723.0,76721.0,0.213546]
[1744144020964,0.33480164,76723.0,76721.0,0.005]
[1744144021130,0.33580164,76723.0,76721.0,0.005]
[1744144021786,0.12825864,76723.0,76721.0,0.213547]
[1744144022263,0.12825864,76723.0,76721.0,0.005]
[1744144022486,0.12825864,76723.0,76717.0,0.22159]
[1744144022487,0.12625864,76722.0,76717.0,0.22159]
[1744144022689,0.34783764,76722.0,76721.0,0.005]
[1744144023808,0.001,76723.0,76722.0,0.018034]
[1744144024126,0.12725864,76723.0,76722.0,0.213545]
[1744144024505,0.12625864,76723.0,76722.0,0.213545]
[1744144024825,0.208531,76727.0,76726.0,0.005]
[1744144025133,0.34,76730.0,76729.0,0.005]
[1744144025328,0.67478264,76730.0,76729.0,0.005]
[1744144025672,0.68781464,76730.0,76729.0,0.005]
[1744144027585,0.69281464,76730.0,76729.0,0.005]
[1744144027810,0.68378264,76730.0,76729.0,0.005]
[1744144028150,0.349,76730.0,76729.0,0.213526]
[1744144028947,0.009,76730.0,76729.0,0.213526]
[1744144029152,0.009,76730.0,76729.0,0.226558]
[1744144029351,0.009,76730.0,76729.0,0.24216]
[1744144029554,0.009,76730.0,76729.0,0.23955359]
[1744144029926,0.009,76730.0,76727.0,0.062933]
[1744144029927,0.013033,76728.0,76727.0,0.0549]
[1744144030116,0.221561,76728.0,76727.0,0.0549]
[1744144030304,0.004,76730.0,76727.0,0.0549]
[1744144030305,0.214523,76730.0,76727.0,0.0549]
[1744144030502,0.214523,76730.0,76728.0,0.208528]
[1744144030503,0.214524,76730.0,76728.0,0.208528]
[1744144030703,0.006,76730.0,76729.0,0.208526]
[1744144030956,0.208518,76732.0,76728.0,0.208528]
[1744144031399,0.208522,76731.0,76728.0,0.208528]
[1744144032077,0.208518,76732.0,76729.0,0.208524]
[1744144032701,0.208521,76731.0,76729.0,0.208524]
[1744144032917,0.208518,76732.0,76729.0,0.208524]
[1744144032918,0.208525,76730.0,76729.0,0.005]
[1744144033274,0.208518,76732.0,76729.0,0.005]
[1744144033479,0.208515,76733.0,76731.0,0.208519]
[1744144033678,0.33477364,76733.0,76731.0,0.208519]
[1744144034090,0.33477364,76733.0,76730.0,0.208522]
[1744144035855,0.12625864,76733.0,76731.0,0.208519]
[1744144035989,0.208493,76741.0,76739.0,0.005]
[1744144036199,0.12625864,76740.0,76739.0,0.005]
[1744144036398,0.33475464,76740.0,76739.0,0.005]
[1744144037348,0.34778564,76740.0,76739.0,0.005]
[1744144037481,0.22154,76735.0,76734.0,0.005]
[1744144037677,0.34779864,76735.0,76734.0,0.005]
[1744144038384,0.34779864,76735.0,76728.0,0.208528]
[1744144038385,0.208517,76732.0,76731.0,0.005]
[1744144038583,0.221561,76728.0,76727.0,0.005]
[1744144038895,0.34781964,76728.0,76727.0,0.005]
[1744144039493,0.12625864,76728.0,76727.0,0.226564]
[1744144040457,0.34,76737.0,76734.0,0.005]
[1744144040679,0.12625864,76736.0,76735.0,0.22654]
[1744144040883,0.12625864,76736.0,76735.0,0.213509]
[1744144041311,0.12625864,76736.0,76735.0,0.22654]
[1744144041718,0.16796,76742.0,76741.0,0.005]
[1744144041893,0.16796,76742.0,76741.0,0.226523]
[1744144042091,0.37645,76742.0,76741.0,0.005]
[1744144042312,0.16796,76742.0,76741.0,0.005]
[1744144042478,0.37645,76742.0,76741.0,0.005]
[1744144042701,0.37645,76742.0,76739.0,0.0492]
[1744144042702,0.208493,76741.0,76740.0,0.005]
[1744144042906,0.221547,76733.0,76732.0,0.005]
[1744144043109,0.20852,76731.0,76730.0,0.005]
[1744144043322,0.20852,76731.0,76720.0,0.062234]
[1744144043323,0.221581,76721.0,76720.0,0.0492]
[1744144043537,0.221601,76714.0,76713.0,0.005]
[1744144043707,0.34785964,76714.0,76713.0,0.005]
[1744144043925,0.34786064,76714.0,76712.0,0.005]
[1744144044137,0.12625864,76713.0,76712.0,0.005]
[1744144044355,0.013034,76721.0,76712.0,0.005]
[1744144044356,0.013033,76725.0,76721.0,0.005]
[1744144044576,0.548542,76723.0,76721.0,0.005]
[1744144044788,0.12625864,76722.0,76721.0,0.005]
[1744144045000,0.34,76729.0,76727.0,0.005]
[1744144045250,0.68781964,76728.0,76727.0,0.005]
[1744144045679,0.46625864,76728.0,76727.0,0.005]
[1744144045904,0.67478664,76728.0,76727.0,0.005]
[1744144047041,0.67978664,76728.0,76727.0,0.005]
[1744144047495,0.221569,76725.0,76721.0,0.005]
[1744144047705,0.22157,76725.0,76722.0,0.005]
[1744144047905,0.208534,76726.0,76723.0,0.20854]
[1744144048113,0.208537,76725.0,76722.0,0.213542]
[1744144048808,0.002,76725.0,76723.0,0.208542]
[1744144049024,0.002,76725.0,76724.0,0.208539]
[1744144049221,0.002,76725.0,76723.0,0.208542]
[1744144049488,0.002,76725.0,76724.0,0.005]
[1744144049757,0.004,76725.0,76724.0,0.213539]
[1744144050137,0.002,76725.0,76724.0,0.213539]
[1744144050348,0.003,76725.0,76724.0,0.213539]
[1744144050538,0.003,76725.0,76724.0,0.005]
[1744144050539,0.005,76725.0,76724.0,0.005]
[1744144050736,0.005,76725.0,76724.0,0.213539]
[1744144050917,0.12625864,76726.0,76724.0,0.213539]
[1744144051122,0.003,76725.0,76724.0,0.005]
[1744144051560,0.211536,76725.0,76724.0,0.005]
[1744144051767,0.006,76725.0,76724.0,0.00240813]
[1744144052238,0.006,76725.0,76724.0,0.21094713]
[1744144052433,0.006,76725.0,76724.0,0.00240813]
[1744144052627,0.003,76725.0,76724.0,0.21094713]
[1744144052907,0.003,76725.0,76724.0,0.00240813]
[1744144053550,0.003,76725.0,76724.0,0.21094713]
[1744144053763,0.006,76725.0,76724.0,0.21094713]
[1744144054083,0.006,76725.0,76724.0,0.00240813]
[1744144054530,0.006,76725.0,76724.0,0.21094713]
[1744144054723,0.006,76725.0,76724.0,0.00240813]
[1744144056368,0.214536,76725.0,76724.0,0.00240813]
[1744144056612,0.227569,76725.0,76724.0,0.00240813]
[1744144056820,0.013035,76715.0,76712.0,0.01215315]
[1744144057021,0.221613,76710.0,76709.0,0.00240813]
[1744144057151,0.34787164,76710.0,76709.0,0.00240813]
[1744144057575,0.33483564,76710.0,76709.0,0.00240813]
[1744144058401,0.33483564,76710.0,76707.0,0.208585]
[1744144058402,0.20858,76709.0,76708.0,0.00240813]
[1744144058728,0.34787464,76709.0,76708.0,0.00240813]
[1744144058897,0.221633,76703.0,76702.0,0.00250813]
[1744144059079,0.34789164,76703.0,76702.0,0.0001]
[1744144059846,0.36243249,76703.0,76702.0,0.0001]
[1744144060164,0.70243249,76703.0,76702.0,0.0001]
[1744144060602,0.70343249,76703.0,76702.0,0.0001]
[1744144061846,0.70443249,76703.0,76702.0,0.0001]
[1744144062005,0.70343249,76703.0,76702.0,0.0001]
[1744144062387,0.70443249,76703.0,76702.0,0.0001]
[1744144063428,0.70643249,76703.0,76702.0,0.0001]
[1744144065710,0.83268794,76703.0,76702.0,0.0001]
[1744144065860,0.013041,76679.0,76678.0,0.00240813]
[1744144066063,0.13929964,76679.0,76678.0,0.00240813]
[1744144066272,0.34796364,76679.0,76678.0,0.00240813]
[1744144067071,0.20866,76680.0,76678.0,0.00240813]
[1744144067271,0.33491864,76680.0,76678.0,0.00240813]
[1744144067994,0.208664,76679.0,76678.0,0.00240813]
[1744144068679,0.221705,76679.0,76678.0,0.00240813]
[1744144069820,0.222705,76679.0,76678.0,0.00240813]
[1744144070874,0.013042,76675.0,76674.0,0.00240813]
[1744144071072,0.013043,76666.0,76664.0,0.01223776]
[1744144071247,0.221743,76665.0,76664.0,0.00240813]
[1744144071603,0.22174,76666.0,76665.0,0.00240813]
[1744144071757,0.208689,76669.0,76665.0,0.21110813]
[1744144071958,0.208693,76668.0,76665.0,0.00240813]
[1744144072161,0.34799064,76669.0,76662.0,0.00240813]
[1744144072162,0.221743,76666.0,76662.0,0.00240813]
[1744144072363,0.013044,76661.0,76658.0,0.00240813]
[1744144072648,0.221766,76657.0,76656.0,0.00240813]
[1744144073090,0.208719,76658.0,76656.0,0.00240813]
[1744144074004,0.208721,76657.0,76656.0,0.00240813]
[1744144074213,0.221766,76657.0,76656.0,0.00240813]
[1744144074364,0.22982071,76657.0,76656.0,0.00240813]
[1744144074567,0.221766,76657.0,76656.0,0.00240813]
[1744144074770,0.221766,76657.0,76623.0,1.04407]
[1744144074771,0.208732,76653.0,76652.0,0.00240813]
[1744144074974,0.221775,76654.0,76652.0,0.00240813]
[1744144075289,0.208732,76653.0,76652.0,0.00240813]
[1744144075500,0.208732,76653.0,76648.0,0.00248813]
[1744144075501,0.221789,76649.0,76648.0,0.00248813]
[1744144075667,0.34804764,76649.0,76648.0,8e-05]
[1744144076583,0.36258849,76649.0,76648.0,8e-05]
[1744144077553,0.70258849,76649.0,76648.0,8e-05]
[1744144079045,0.70258849,76649.0,76623.0,0.00240813]
[1744144079046,0.221861,76624.0,76623.0,0.00240813]
[1744144079481,0.208817,76622.0,76620.0,0.00240813]
[1744144080440,0.013049,76629.0,76625.0,0.208808]
[1744144080642,0.16788,76632.0,76630.0,0.00240813]
[1744144080809,0.20882,76621.0,76620.0,0.01223985]
[1744144081013,0.01305,76624.0,76620.0,0.00240813]
[1744144081209,0.22187,76622.0,76621.0,0.00240813]
[1744144081413,0.22187,76622.0,76617.0,0.013051]
[1744144081414,0.22187,76622.0,76617.0,0.01203218]
[1744144081415,0.208822,76620.0,76617.0,0.01203218]
[1744144081660,0.013052,76616.0,76615.0,0.00240813]
[1744144082070,0.208831,76617.0,76615.0,0.00240813]
[1744144082652,0.013052,76616.0,76615.0,0.00240813]
[1744144082851,0.208847,76611.0,76609.0,0.00240813]
[1744144083097,0.33510564,76611.0,76609.0,0.00240813]
[1744144083297,0.208841,76614.0,76603.0,0.208868]
[1744144083298,0.208861,76606.0,76605.0,0.00240813]
[1744144083496,0.221908,76608.0,76605.0,0.00240813]
[1744144083831,0.33511664,76607.0,76605.0,0.00240813]
[1744144084154,0.12625864,76607.0,76605.0,0.00240813]
[1744144084787,0.12625864,76607.0,76605.0,0.22432313]
[1744144085007,0.34,76615.0,76614.0,0.22429913]
[1744144085205,0.16792,76629.0,76628.0,0.22185]
[1744144085404,0.29417864,76629.0,76628.0,0.22185]
[1744144085614,0.208801,76628.0,76625.0,0.22426413]
[1744144085783,0.12625864,76627.0,76625.0,0.00240813]
[1744144086147,0.12625864,76627.0,76625.0,0.22426413]
[1744144086463,0.1469785,76627.0,76625.0,0.21121413]
[1744144086720,0.02071986,76627.0,76626.0,0.00240813]
[1744144087070,0.013049,76630.0,76627.0,0.00240813]
[1744144087071,0.353049,76630.0,76627.0,0.00240813]
[1744144087305,0.01305,76628.0,76627.0,0.00240813]
[1744144087525,0.561847,76630.0,76629.0,0.01545713]
[1744144087526,0.02053819,76630.0,76629.0,0.01545713]
[1744144087681,0.013047,76643.0,76635.0,0.00240813]
[1744144087880,0.34,76636.0,76635.0,0.00240813]
[1744144088328,0.02015629,76636.0,76635.0,0.01545613]
[1744144088498,0.013046,76646.0,76637.0,0.208775]
[1744144088499,0.013047,76644.0,76637.0,0.208775]
[1744144088712,0.013047,76642.0,76637.0,0.208775]
[1744144088909,0.013047,76642.0,76637.0,0.00240813]
[1744144088910,0.013048,76638.0,76637.0,0.00240813]
[1744144090087,0.222821,76638.0,76637.0,0.00240813]
[1744144090288,0.001,76638.0,76637.0,0.21118413]
[1744144090527,0.001,76638.0,76637.0,0.00240813]
[1744144091241,0.209773,76638.0,76637.0,0.00240813]
[1744144091453,0.001,76638.0,76637.0,0.00240813]
[1744144091654,0.001,76638.0,76637.0,0.21118413]
[1744144091972,0.001,76638.0,76637.0,0.27203213]
[1744144092109,0.002,76638.0,76637.0,0.27203213]
[1744144092915,0.001,76638.0,76637.0,0.27203213]
[1744144093520,0.013046,76647.0,76646.0,0.00240813]
[1744144093715,0.221812,76641.0,76640.0,0.00240813]
[1744144094437,0.208763,76642.0,76640.0,0.00240813]
[1744144094633,1.2,76826.0,76646.0,0.21115913]
[1744144094634,0.02034684,76647.0,76646.0,0.21115913]
[1744144094832,0.02034684,76647.0,76646.0,0.22420513]
[1744144094833,0.002,76647.0,76646.0,0.22420513]
[1744144095655,0.002,76647.0,76646.0,0.27250513]
[1744144095831,0.208726,76656.0,76651.0,0.208737]
[1744144096016,0.22935352,76656.0,76651.0,0.208737]
[1744144096656,0.22935352,76656.0,76652.0,0.013045]
[1744144096858,0.23135352,76656.0,76652.0,0.013045]
[1744144097063,0.24439852,76656.0,76651.0,0.221783]
[1744144097501,0.02262752,76656.0,76654.0,0.221773]
[1744144097777,0.002,76656.0,76655.0,0.01545313]
[1744144097976,0.005,76656.0,76655.0,0.01545313]
[1744144098375,0.003,76656.0,76655.0,0.01545313]
[1744144098561,0.548719,76659.0,76657.0,0.00240813]
[1744144098741,0.69420921,76659.0,76657.0,0.00240813]
[1744144098941,0.013044,76658.0,76657.0,0.00240813]
[1744144099700,0.34,76658.0,76657.0,0.00240813]
[1744144100248,0.548719,76658.0,76657.0,0.00240813]
[1744144100451,0.561763,76658.0,76657.0,0.00240813]
[1744144100650,0.561763,76658.0,76653.0,0.00240813]
[1744144100651,0.221775,76654.0,76653.0,0.00240813]
[1744144101161,0.20873,76654.0,76653.0,0.00240813]
[1744144101582,0.353044,76658.0,76653.0,0.22418513]
[1744144101803,0.221769,76656.0,76655.0,0.00240813]
[1744144102393,0.34,76658.0,76657.0,0.00240813]
[1744144102609,0.14549221,76659.0,76657.0,0.00240813]
[1744144102937,0.01923357,76659.0,76658.0,0.00240813]
[1744144103207,0.208713,76661.0,76658.0,0.00240813]
[1744144103419,0.208716,76659.0,76658.0,0.00240813]
[1744144103781,0.212716,76659.0,76658.0,0.00240813]
[1744144104326,0.216716,76659.0,76658.0,0.00240813]
[1744144104671,0.008,76659.0,76658.0,0.00240813]
[1744144104894,0.021044,76659.0,76658.0,0.00240813]
[1744144105091,0.22976,76659.0,76658.0,0.00240813]
[1744144105293,0.221763,76658.0,76657.0,0.00240813]
[1744144106431,0.225763,76658.0,76657.0,0.00240813]
[1744144106628,0.229763,76658.0,76657.0,0.00240813]
[1744144112631,0.216719,76658.0,76657.0,0.00240813]
[1744144112837,0.008,76658.0,76657.0,0.27087413]
[1744144113237,0.008,76658.0,76657.0,0.31937413]
[1744144113439,0.008,76658.0,76657.0,0.32937368]
[1744144113759,0.004,76658.0,76657.0,0.32937368]
[1744144113986,0.0035,76665.0,76664.0,0.221745]
[1744144114607,0.02243215,76665.0,76664.0,0.22415313]
[1744144114852,0.02243215,76665.0,76664.0,0.00240813]
[1744144115089,0.23113215,76665.0,76664.0,0.00240813]
[1744144115251,0.208702,76664.0,76663.0,0.00240813]
[1744144115456,0.03547515,76665.0,76663.0,0.00240813]
[1744144115678,0.02243215,76665.0,76663.0,0.21111313]
[1744144116034,0.02243215,76665.0,76664.0,0.208702]
[1744144116405,0.02243215,76665.0,76664.0,0.209702]
[1744144116605,0.02243215,76665.0,76664.0,0.22415313]
[1744144117264,0.02243215,76665.0,76664.0,0.21111013]
[1744144117461,0.02343215,76665.0,76664.0,0.21111013]
[1744144117784,0.03647515,76665.0,76664.0,0.00240813]
[1744144118066,0.221745,76664.0,76663.0,0.00240813]
[1744144118404,0.02543215,76665.0,76663.0,0.00240813]
[1744144118770,0.23413315,76665.0,76663.0,0.00240813]
[1744144119093,0.02443215,76665.0,76664.0,0.208702]
[1744144119296,0.02443215,76665.0,76663.0,0.00240813]
[1744144119297,0.23313415,76665.0,76663.0,0.00240813]
[1744144119546,0.02443215,76665.0,76664.0,0.013043]
[1744144119767,0.02543215,76665.0,76664.0,0.22415313]
[1744144119935,0.01407741,76665.0,76664.0,0.22415313]
[1744144120143,0.208682,76672.0,76667.0,0.221735]
[1744144120296,0.12625864,76671.0,76668.0,0.00240813]
[1744144120482,0.34,76670.0,76668.0,0.00240813]
[1744144120690,0.208689,76669.0,76668.0,0.00240813]
[1744144120892,0.67494564,76670.0,76668.0,0.21110013]
[1744144121325,0.67494564,76670.0,76668.0,0.00240813]
[1744144121531,0.46625864,76670.0,76669.0,0.208689]
[1744144121747,0.54867,76676.0,76675.0,0.00240813]
[1744144122026,0.561711,76676.0,76675.0,0.00240813]
[1744144122647,0.013042,76671.0,76669.0,0.00240813]
[1744144122810,0.221728,76670.0,76669.0,0.00240813]
[1744144124801,0.208686,76670.0,76669.0,0.00240813]
[1744144125090,0.221728,76670.0,76669.0,0.00240813]
[1744144125687,0.224728,76670.0,76669.0,0.00240813]
[1744144126547,0.228728,76670.0,76669.0,0.00240813]
[1744144126748,0.007,76670.0,76669.0,0.00240813]
[1744144127092,0.007,76670.0,76669.0,0.21109713]
[1744144127456,0.004,76670.0,76669.0,0.21109713]
[1744144127654,0.004,76670.0,76669.0,0.31824013]
[1744144127831,0.008,76670.0,76669.0,0.31824013]
[1744144128033,0.008,76670.0,76669.0,0.44449877]
[1744144128634,0.004,76670.0,76669.0,0.44449877]
[1744144128830,0.004,76670.0,76669.0,0.46888296]
[1744144129238,0.34,76691.0,76688.0,0.21104513]
[1744144129660,0.34,76691.0,76689.0,0.208634]
[1744144129907,0.013039,76692.0,76688.0,0.00240813]
[1744144130111,0.34,76691.0,76688.0,0.00240813]
[1744144130422,0.57401081,76691.0,76688.0,0.21104513]
[1744144130546,0.34,76689.0,76688.0,0.00240813]
[1744144130747,0.34,76689.0,76688.0,0.21104513]
[1744144130947,0.34,76689.0,76688.0,0.00240813]
[1744144131943,0.548634,76689.0,76688.0,0.00240813]
[1744144132145,0.34,76689.0,76688.0,0.00240813]
[1744144132595,0.013,76691.0,76690.0,0.22407913]
[1744144132766,0.013,76691.0,76690.0,0.27267913]
[1744144132970,0.007,76691.0,76690.0,0.27267913]
[1744144133267,0.208597,76703.0,76700.0,0.208603]
[1744144133439,0.208597,76703.0,76699.0,0.208607]
[1744144133846,0.208619,76695.0,76694.0,0.00240813]
[1744144133997,0.208619,76695.0,76690.0,0.00240813]
[1744144133998,0.221668,76691.0,76690.0,0.00240813]
[1744144134200,0.225668,76691.0,76690.0,0.00240813]
[1744144134407,0.208627,76692.0,76690.0,0.00240813]
[1744144134603,0.208627,76692.0,76687.0,0.208639]
[1744144134604,0.221651,76697.0,76694.0,0.00240813]
[1744144134809,0.208615,76696.0,76695.0,0.00240813]
[1744144136207,0.228653,76696.0,76695.0,0.00240813]
[1744144136414,0.215615,76696.0,76695.0,0.00240813]
[1744144136613,0.228653,76696.0,76695.0,0.00240813]
[1744144137253,0.235653,76696.0,76695.0,0.00240813]
[1744144137705,0.235653,76696.0,76690.0,0.208631]
[1744144137706,0.221656,76695.0,76694.0,0.00240813]
[1744144138550,0.208618,76695.0,76694.0,0.00240813]
[1744144138749,0.13325864,76696.0,76694.0,0.00240813]
[1744144138911,0.007,76696.0,76695.0,0.22406413]
[1744144139526,0.00679221,76699.0,76696.0,0.208615]
[1744144140661,0.007,76696.0,76695.0,0.00240813]
[1744144140961,0.007,76696.0,76695.0,0.21102613]
[1744144141264,0.007,76696.0,76695.0,0.00240813]
[1744144141930,0.20861,76698.0,76695.0,0.00240813]
[1744144142119,0.208615,76696.0,76695.0,0.00240813]
[1744144142523,0.221656,76695.0,76694.0,0.00240813]
[1744144143515,0.221668,76691.0,76690.0,0.00240813]
[1744144144305,0.208629,76691.0,76690.0,0.00240813]
[1744144144478,0.13825864,76695.0,76692.0,0.00240813]
[1744144144676,0.21462,76695.0,76694.0,0.00240813]
[1744144144881,0.227658,76695.0,76694.0,0.00240813]
[1744144145084,0.221658,76695.0,76694.0,0.00240813]
[1744144145322,0.221658,76695.0,76694.0,0.00177113]
[1744144145455,0.221651,76697.0,76696.0,0.00177113]
[1744144146116,0.221651,76697.0,76692.0,0.00177113]
[1744144146117,0.221661,76693.0,76692.0,0.00177113]
[1744144146833,0.548616,76696.0,76692.0,0.00177113]
[1744144147036,0.13929664,76697.0,76690.0,0.00177113]
[1744144147037,0.221668,76691.0,76690.0,0.00177113]
[1744144147584,0.33988464,76693.0,76690.0,0.00177113]
[1744144147778,0.221668,76691.0,76690.0,0.00177113]
[1744144148586,0.225668,76691.0,76690.0,0.00177113]
[1744144149134,0.212629,76691.0,76690.0,0.00177113]
[1744144149302,0.225668,76691.0,76690.0,0.00177113]
[1744144150438,0.229668,76691.0,76690.0,0.00177113]
[1744144151752,0.008,76691.0,76690.0,0.00177113]
[1744144152044,0.216629,76691.0,76690.0,0.00177113]
[1744144152244,0.008,76691.0,76690.0,0.21040313]
[1744144152503,0.008,76691.0,76690.0,0.22344213]
[1744144154445,0.008,76691.0,76690.0,0.00177113]
[1744144154693,0.216629,76691.0,76690.0,0.00177113]
[1744144154872,0.208643,76686.0,76685.0,0.00177113]
[1744144155064,0.221683,76686.0,76685.0,0.00177113]
[1744144155492,0.561683,76686.0,76685.0,0.00177113]
[1744144156261,0.563683,76686.0,76685.0,0.00177113]
[1744144156731,0.565683,76686.0,76685.0,0.00177113]
[1744144162066,0.565683,76686.0,76673.0,0.0479]
[1744144162067,0.013042,76674.0,76673.0,0.0479]
[1744144162265,0.221745,76664.0,76663.0,0.00177113]
[1744144162470,0.221749,76663.0,76662.0,0.00177113]
[1744144163474,0.208697,76667.0,76665.0,0.00177113]
[1744144163801,0.208697,76666.0,76665.0,0.00177113]
[1744144164205,0.22174,76666.0,76665.0,0.00177113]
[1744144165604,0.22374,76666.0,76665.0,0.00177113]
[1744144166334,0.22574,76666.0,76665.0,0.00177113]
[1744144167014,0.22374,76666.0,76665.0,0.00177113]
[1744144167319,0.22174,76666.0,76665.0,0.00177113]
[1744144167516,0.22174,76666.0,76653.0,0.208731]
[1744144167517,0.221755,76661.0,76660.0,0.00177113]
[1744144167817,0.68801364,76661.0,76660.0,0.00177113]
[1744144169492,0.69101364,76661.0,76660.0,0.00177113]
[1744144170378,0.013046,76650.0,76649.0,0.00177113]
[1744144170580,0.34804564,76650.0,76649.0,0.00177113]
[1744144171187,0.353045,76657.0,76655.0,0.00177113]
[1744144171488,0.68802764,76656.0,76655.0,0.00177113]
[1744144172094,0.561769,76656.0,76655.0,0.00177113]
[1744144172507,0.561772,76655.0,76654.0,0.00177113]
[1744144174960,0.208719,76659.0,76658.0,0.00177113]
[1744144174961,0.561762,76659.0,76658.0,0.00177113]
[1744144175178,0.68802064,76659.0,76658.0,0.00177113]
[1744144176194,0.69002064,76659.0,76658.0,0.00177113]
[1744144176796,0.69202064,76659.0,76658.0,0.00177113]
[1744144177788,0.004,76659.0,76658.0,0.27023413]
[1744144177992,0.004,76659.0,76658.0,0.31793413]
[1744144178192,0.004,76659.0,76658.0,0.33092972]
[1744144178764,0.002,76659.0,76658.0,0.45718836]
[1744144178986,1.03352,76686.0,76680.0,0.22347113]
[1744144179193,0.013039,76689.0,76680.0,0.22347113]
[1744144179194,0.221676,76689.0,76686.0,0.00177113]
[1744144179408,0.221676,76689.0,76688.0,0.013039]
[1744144179409,0.12625864,76689.0,76688.0,0.013039]
[1744144179588,0.180398,76694.0,76692.0,0.00177113]
[1744144179787,0.68791964,76693.0,76692.0,0.00177113]
[1744144179991,0.71223805,76693.0,76692.0,0.00177113]
[1744144180325,0.36431841,76693.0,76692.0,0.21039713]
[1744144180501,0.02431841,76693.0,76692.0,0.21039713]
[1744144180701,0.375981,76694.0,76692.0,0.00177113]
[1744144181097,0.208623,76693.0,76692.0,0.00177113]
[1744144181299,0.375981,76694.0,76692.0,0.00177113]
[1744144181499,0.375981,76694.0,76692.0,0.21039713]
[1744144181703,0.16736,76694.0,76693.0,0.00177113]
[1744144183026,0.03292846,76694.0,76693.0,0.22343213]
[1744144183585,0.03292846,76694.0,76693.0,0.00177113]
[1744144184246,0.25458746,76694.0,76693.0,0.00177113]
[1744144184483,0.221661,76693.0,76692.0,0.00177113]
[1744144184637,0.221661,76693.0,76682.0,0.208653]
[1744144184638,0.221668,76691.0,76690.0,0.00177113]
[1744144186052,0.224668,76691.0,76690.0,0.00177113]
[1744144186250,0.35092664,76691.0,76686.0,0.00177113]
[1744144186424,0.35092664,76691.0,76681.0,0.00177113]
[1744144186425,0.221693,76682.0,76681.0,0.00177113]
[1744144187343,0.2217,76680.0,76679.0,0.00177113]
[1744144188453,0.12625864,76682.0,76680.0,0.2217]
[1744144188660,0.35304,76686.0,76685.0,0.00177113]
[1744144188865,0.68794164,76686.0,76685.0,0.00177113]
[1744144190117,0.68894164,76686.0,76685.0,0.00177113]
[1744144192137,0.221697,76681.0,76680.0,0.00177113]
[1744144192557,0.34795564,76681.0,76680.0,0.00177113]
[1744144193651,0.34795564,76681.0,76680.0,0.00377113]
[1744144194959,0.34795564,76681.0,76680.0,0.00177113]
[1744144196312,0.34795564,76681.0,76680.0,0.00277113]
[1744144200308,0.70249649,76681.0,76680.0,0.001]
[1744144200451,0.82875194,76681.0,76680.0,0.001]
[1744144201610,0.83175194,76681.0,76680.0,0.001]
[1744144201910,0.22174,76666.0,76665.0,0.00177113]
[1744144202052,0.34799864,76666.0,76665.0,0.00177113]
[1744144202261,0.208695,76667.0,76665.0,0.00177113]
[1744144202262,0.013042,76671.0,76668.0,0.00177113]
[1744144202614,0.208689,76669.0,76668.0,0.00177113]